[Event "*** Titled Tuesday Blitz"]
[Site "Chess.com"]
[Date "2020.05.05"]
[Round "10"]
[White "leoduarte"]
[Black "mirciulica14"]
[Result "1-0"]
[WhiteElo "2377"]
[BlackElo "2577"]
[TimeControl "180+1"]
[EndTime "12:00:42 PDT"]
[Termination "leoduarte won by resignation"]

1. e4 {[%clk 0:03:00.9]} 1... e5 {[%clk 0:02:59.8]} 2. Nf3 {[%clk 0:03:00.6]}
2... Nc6 {[%clk 0:03:00.7]} 3. d4 {[%clk 0:03:00.6]} 3... exd4 {[%clk
0:03:00.9]} 4. Nxd4 {[%clk 0:03:01.5]} 4... Bc5 {[%clk 0:03:00.5]} 5. Nxc6
{[%clk 0:02:55.2]} 5... Qf6 {[%clk 0:03:00.9]} 6. Qf3 {[%clk 0:02:46.6]} 6...
dxc6 {[%clk 0:03:01.2]} 7. Qxf6 {[%clk 0:02:42]} 7... gxf6 {[%clk 0:02:51]} 8.
Nc3 {[%clk 0:02:34]} 8... f5 {[%clk 0:02:50.2]} 9. Bd3 {[%clk 0:02:31.1]} 9...
Ne7 {[%clk 0:02:48.6]} 10. Bf4 {[%clk 0:02:21.7]} 10... Rg8 {[%clk 0:02:40.9]}
11. O-O {[%clk 0:02:02.9]} 11... Bd6 {[%clk 0:02:40.9]} 12. Bxd6 {[%clk
0:01:26.1]} 12... cxd6 {[%clk 0:02:41.8]} 13. Rfe1 {[%clk 0:01:24.8]} 13... Kf8
{[%clk 0:02:40.4]} 14. exf5 {[%clk 0:01:21.4]} 14... Nxf5 {[%clk 0:02:40.4]} 15.
Ne4 {[%clk 0:01:16.2]} 15... Nh4 {[%clk 0:02:38.3]} 16. Ng3 {[%clk 0:01:12.6]}
16... h6 {[%clk 0:02:25.5]} 17. Re3 {[%clk 0:01:00.9]} 17... Be6 {[%clk
0:02:22.4]} 18. Rae1 {[%clk 0:00:59.7]} 18... Bd5 {[%clk 0:02:18.1]} 19. f3
{[%clk 0:00:55.9]} 19... Be6 {[%clk 0:01:52]} 20. f4 {[%clk 0:00:50.3]} 20...
Kg7 {[%clk 0:01:44.7]} 21. f5 {[%clk 0:00:49.2]} 21... Bd5 {[%clk 0:01:45.1]}
22. Be4 {[%clk 0:00:42.7]} 22... Kf6 {[%clk 0:01:32]} 23. Bxd5 {[%clk
0:00:38.2]} 23... cxd5 {[%clk 0:01:32.9]} 24. Rd3 {[%clk 0:00:32.5]} 24... Rac8
{[%clk 0:01:17.4]} 25. c3 {[%clk 0:00:32]} 25... Rc5 {[%clk 0:01:15.2]} 26. Red1
{[%clk 0:00:31.5]} 26... Ke5 {[%clk 0:01:03.7]} 27. Re1+ {[%clk 0:00:26.9]}
27... Kf6 {[%clk 0:01:04]} 28. Rd4 {[%clk 0:00:24.8]} 28... Nxf5 {[%clk
0:00:56.8]} 29. Rf1 {[%clk 0:00:20.2]} 29... Rxg3 {[%clk 0:00:47.2]} 30. hxg3
{[%clk 0:00:20.4]} 30... Kg5 {[%clk 0:00:29.2]} 31. Rdf4 {[%clk 0:00:16.7]}
31... Nxg3 {[%clk 0:00:29.6]} 32. Rxf7 {[%clk 0:00:16.4]} 32... Nxf1 {[%clk
0:00:29.5]} 33. Kxf1 {[%clk 0:00:15.4]} 33... Rb5 {[%clk 0:00:29.5]} 34. b3
{[%clk 0:00:15.4]} 34... a5 {[%clk 0:00:30.1]} 35. Ke2 {[%clk 0:00:14.7]} 35...
a4 {[%clk 0:00:30]} 36. bxa4 {[%clk 0:00:13.8]} 36... Rb2+ {[%clk 0:00:30.6]}
37. Kf3 {[%clk 0:00:13.8]} 37... Rxa2 {[%clk 0:00:30.4]} 38. Rxb7 {[%clk
0:00:13.9]} 38... Rxa4 {[%clk 0:00:31.1]} 39. Rb5 {[%clk 0:00:14]} 39... Ra6
{[%clk 0:00:15.4]} 40. Rxd5+ {[%clk 0:00:13.7]} 40... Kg6 {[%clk 0:00:16.1]} 41.
g3 {[%clk 0:00:10.9]} 41... Rc6 {[%clk 0:00:16.3]} 42. Rd3 {[%clk 0:00:09.3]}
42... Kf5 {[%clk 0:00:16.8]} 43. Rd5+ {[%clk 0:00:09.2]} 43... Ke6 {[%clk
0:00:16.6]} 44. Rd3 {[%clk 0:00:09.8]} 44... d5 {[%clk 0:00:16.6]} 45. Kg4
{[%clk 0:00:08.9]} 45... Ke5 {[%clk 0:00:11.7]} 46. Kh5 {[%clk 0:00:07.8]} 46...
Ke4 {[%clk 0:00:12.2]} 47. Rd4+ {[%clk 0:00:08.2]} 47... Ke5 {[%clk 0:00:12.9]}
48. Rd3 {[%clk 0:00:08.5]} 48... Rf6 {[%clk 0:00:11.9]} 49. Re3+ {[%clk
0:00:07.3]} 49... Kd6 {[%clk 0:00:12.5]} 50. g4 {[%clk 0:00:07.5]} 50... Kc5
{[%clk 0:00:12.8]} 51. Rd3 {[%clk 0:00:04.5]} 51... Rf4 {[%clk 0:00:07.2]} 52.
Rg3 {[%clk 0:00:04.4]} 52... Kc4 {[%clk 0:00:07.1]} 53. Kxh6 {[%clk 0:00:03.7]}
53... d4 {[%clk 0:00:04.3]} 54. cxd4 {[%clk 0:00:03.2]} 54... Kxd4 {[%clk
0:00:05.2]} 55. g5 {[%clk 0:00:03.7]} 55... Rh4+ {[%clk 0:00:06.1]} 56. Kg7
{[%clk 0:00:03.6]} 56... Ke5 {[%clk 0:00:07]} 57. g6 {[%clk 0:00:04]} 57... Ke6
{[%clk 0:00:07.6]} 58. Kg8 {[%clk 0:00:04]} 58... Ra4 {[%clk 0:00:07.1]} 59. g7
{[%clk 0:00:04]} 59... Ra8+ {[%clk 0:00:07.7]} 60. Kh7 {[%clk 0:00:04.3]} 60...
Ra7 {[%clk 0:00:08.6]} 61. Kh8 {[%clk 0:00:04.6]} 61... Kf6 {[%clk 0:00:01.4]}
62. g8=Q {[%clk 0:00:03.8]} 62... Rh7+ {[%clk 0:00:02.2]} 63. Qxh7 {[%clk
0:00:03.9]} 1-0

[Event "*** Titled Tuesday Blitz"]
[Site "Chess.com"]
[Date "2020.05.05"]
[Round "10"]
[White "Gvetadze"]
[Black "aNaartjieZA"]
[Result "0-1"]
[WhiteElo "2408"]
[BlackElo "2596"]
[TimeControl "180+1"]
[EndTime "12:00:47 PDT"]
[Termination "aNaartjieZA won by resignation"]

1. e4 {[%clk 0:03:00.9]} 1... e6 {[%clk 0:02:59]} 2. d4 {[%clk 0:03:00.2]} 2...
d5 {[%clk 0:02:59.3]} 3. e5 {[%clk 0:02:59.9]} 3... c5 {[%clk 0:02:59.1]} 4. c3
{[%clk 0:03:00.3]} 4... Nc6 {[%clk 0:02:59.1]} 5. Nf3 {[%clk 0:03:00.5]} 5...
Qb6 {[%clk 0:02:59.1]} 6. a3 {[%clk 0:03:01]} 6... a5 {[%clk 0:02:58.6]} 7. Bd3
{[%clk 0:02:59.7]} 7... Nh6 {[%clk 0:02:57.3]} 8. O-O {[%clk 0:02:59.1]} 8...
cxd4 {[%clk 0:02:57.1]} 9. cxd4 {[%clk 0:02:59]} 9... Nf5 {[%clk 0:02:57.3]} 10.
Bxf5 {[%clk 0:02:58.8]} 10... exf5 {[%clk 0:02:58.2]} 11. Nc3 {[%clk 0:02:59.1]}
11... Be6 {[%clk 0:02:58.6]} 12. Rb1 {[%clk 0:02:59.1]} 12... h6 {[%clk
0:02:57.1]} 13. Na4 {[%clk 0:02:52.9]} 13... Qd8 {[%clk 0:02:53.3]} 14. Be3
{[%clk 0:02:52.2]} 14... g5 {[%clk 0:02:52.2]} 15. Nc5 {[%clk 0:02:41.7]} 15...
Bxc5 {[%clk 0:02:50.4]} 16. dxc5 {[%clk 0:02:40.8]} 16... f4 {[%clk 0:02:48.4]}
17. Bd4 {[%clk 0:02:38]} 17... g4 {[%clk 0:02:44.6]} 18. Ne1 {[%clk 0:02:37.9]}
18... a4 {[%clk 0:02:32.5]} 19. Qd2 {[%clk 0:02:33.5]} 19... f3 {[%clk
0:02:28.8]} 20. g3 {[%clk 0:02:31.6]} 20... h5 {[%clk 0:02:25.6]} 21. h4 {[%clk
0:02:24.4]} 21... gxh3 {[%clk 0:02:21.5]} 22. Kh2 {[%clk 0:02:24.1]} 22... h4
{[%clk 0:02:21]} 23. Nxf3 {[%clk 0:02:23.4]} 23... hxg3+ {[%clk 0:02:18.9]} 24.
fxg3 {[%clk 0:02:23.3]} 24... Qa5 {[%clk 0:02:03.7]} 25. Qf4 {[%clk 0:02:12.2]}
25... O-O-O {[%clk 0:01:58.5]} 26. Rf2 {[%clk 0:01:54.5]} 26... Rhg8 {[%clk
0:01:49.6]} 27. Bc3 {[%clk 0:01:53.4]} 27... Qxc5 {[%clk 0:01:46.8]} 28. Rbf1
{[%clk 0:01:52.6]} 28... d4 {[%clk 0:01:38.4]} 29. Bb4 {[%clk 0:01:46.3]} 29...
Qd5 {[%clk 0:01:38.5]} 30. Bd6 {[%clk 0:01:43.5]} 30... Rg4 {[%clk 0:01:26.4]}
31. Qd2 {[%clk 0:01:43.3]} 31... Rxd6 {[%clk 0:01:23.8]} 32. exd6 {[%clk
0:01:42.8]} 32... Qxd6 {[%clk 0:01:23.5]} 33. Rg1 {[%clk 0:01:42.9]} 33... Kb8
{[%clk 0:01:17.7]} 34. Ng5 {[%clk 0:01:38.4]} 34... f5 {[%clk 0:01:12.4]} 35.
Nxe6 {[%clk 0:01:37.3]} 35... Qxe6 {[%clk 0:01:12.2]} 36. Qd3 {[%clk 0:01:28.1]}
36... Qe4 {[%clk 0:01:09]} 37. Qb5 {[%clk 0:01:24.2]} 37... f4 {[%clk
0:01:04.1]} 38. gxf4 {[%clk 0:01:08.6]} 38... Rxf4 {[%clk 0:00:49.8]} 39. Re2
{[%clk 0:01:07.5]} 39... Qh7 {[%clk 0:00:36.2]} 40. Qg5 {[%clk 0:00:58.9]} 40...
Qc7 {[%clk 0:00:30.9]} 41. Qg3 {[%clk 0:00:55.9]} 41... Ka7 {[%clk 0:00:19.8]}
42. Rf1 {[%clk 0:00:50.6]} 42... Rf7 {[%clk 0:00:19.8]} 43. Rxf7 {[%clk
0:00:44.2]} 43... Qxf7 {[%clk 0:00:19.2]} 44. Rf2 {[%clk 0:00:36.6]} 44... Qd5
{[%clk 0:00:17]} 45. Qd3 {[%clk 0:00:32.1]} 45... Ne5 {[%clk 0:00:16.3]} 46. Qf5
{[%clk 0:00:30]} 46... Qd6 {[%clk 0:00:15.8]} 47. Kxh3 {[%clk 0:00:27.3]} 47...
Qh6+ {[%clk 0:00:15.2]} 48. Kg3 {[%clk 0:00:27.3]} 48... Qe3+ {[%clk 0:00:15.3]}
49. Kg2 {[%clk 0:00:27.2]} 49... d3 {[%clk 0:00:15.5]} 50. Qf4 {[%clk
0:00:25.4]} 50... Qe1 {[%clk 0:00:14.6]} 51. Qd2 {[%clk 0:00:22.5]} 51... Qe4+
{[%clk 0:00:14.1]} 52. Kg3 {[%clk 0:00:20.6]} 52... Nc4 {[%clk 0:00:14.4]} 53.
Qb4 {[%clk 0:00:18.6]} 53... Qe3+ {[%clk 0:00:14]} 54. Rf3 {[%clk 0:00:19]}
54... Qe5+ {[%clk 0:00:14.3]} 55. Kf2 {[%clk 0:00:18.5]} 55... Qe2+ {[%clk
0:00:14.1]} 56. Kg3 {[%clk 0:00:18.4]} 56... Qe5+ {[%clk 0:00:14.4]} 57. Kf2
{[%clk 0:00:17.6]} 57... Qxb2+ {[%clk 0:00:14.4]} 58. Qxb2 {[%clk 0:00:16.7]}
58... Nxb2 {[%clk 0:00:15.3]} 59. Ke1 {[%clk 0:00:16.2]} 59... b5 {[%clk
0:00:15.5]} 60. Kd2 {[%clk 0:00:15.8]} 60... Kb6 {[%clk 0:00:15.9]} 61. Kc3
{[%clk 0:00:15.7]} 61... Nc4 {[%clk 0:00:16.5]} 62. Rxd3 {[%clk 0:00:15.9]}
62... Nxa3 {[%clk 0:00:16.7]} 63. Rd6+ {[%clk 0:00:15.5]} 63... Ka5 {[%clk
0:00:16.7]} 64. Rd8 {[%clk 0:00:16.1]} 64... b4+ {[%clk 0:00:17.1]} 65. Kb2
{[%clk 0:00:16.5]} 65... Nb5 {[%clk 0:00:17.3]} 66. Ka2 {[%clk 0:00:17.4]} 66...
b3+ {[%clk 0:00:17.3]} 67. Kb2 {[%clk 0:00:17.2]} 67... Kb4 {[%clk 0:00:17.9]}
68. Rd3 {[%clk 0:00:17]} 68... a3+ {[%clk 0:00:18.3]} 69. Ka1 {[%clk 0:00:17.4]}
69... b2+ {[%clk 0:00:17.4]} 70. Ka2 {[%clk 0:00:15]} 70... Nc3+ {[%clk
0:00:17.5]} 71. Rxc3 {[%clk 0:00:15.3]} 71... Kxc3 {[%clk 0:00:17.8]} 72. Kb1
{[%clk 0:00:15.9]} 72... a2+ {[%clk 0:00:17.8]} 73. Kxa2 {[%clk 0:00:16.3]}
73... Kc2 {[%clk 0:00:18.1]} 74. Ka3 {[%clk 0:00:17.2]} 74... b1=Q {[%clk
0:00:18.3]} 0-1

[Event "*** Titled Tuesday Blitz"]
[Site "Chess.com"]
[Date "2020.05.05"]
[Round "10"]
[White "CSB7"]
[Black "Gabrielian_Artur"]
[Result "1-0"]
[WhiteElo "2554"]
[BlackElo "2695"]
[TimeControl "180+1"]
[EndTime "12:01:00 PDT"]
[Termination "CSB7 won by resignation"]

1. e4 {[%clk 0:03:00.9]} 1... c5 {[%clk 0:02:59.6]} 2. Nf3 {[%clk 0:02:56.5]}
2... d6 {[%clk 0:02:59.6]} 3. d4 {[%clk 0:02:56.6]} 3... cxd4 {[%clk 0:02:59.8]}
4. Nxd4 {[%clk 0:02:57.5]} 4... Nf6 {[%clk 0:03:00.2]} 5. Nc3 {[%clk 0:02:57.9]}
5... Nc6 {[%clk 0:03:00.3]} 6. f3 {[%clk 0:02:57.1]} 6... e5 {[%clk 0:02:59.6]}
7. Nb3 {[%clk 0:02:56.7]} 7... Be6 {[%clk 0:02:59.5]} 8. Be3 {[%clk 0:02:52.6]}
8... Be7 {[%clk 0:02:59.2]} 9. Nd5 {[%clk 0:02:52.2]} 9... Bxd5 {[%clk
0:02:56.8]} 10. exd5 {[%clk 0:02:53.1]} 10... Nb4 {[%clk 0:02:56.9]} 11. c4
{[%clk 0:02:31.3]} 11... a5 {[%clk 0:02:54.5]} 12. Qd2 {[%clk 0:02:16.4]} 12...
b6 {[%clk 0:02:49.4]} 13. Be2 {[%clk 0:02:09.5]} 13... O-O {[%clk 0:02:48.4]}
14. O-O {[%clk 0:02:08.8]} 14... Nd7 {[%clk 0:02:47.8]} 15. Nc1 {[%clk
0:01:40.6]} 15... f5 {[%clk 0:02:43.4]} 16. a3 {[%clk 0:01:35.7]} 16... Na6
{[%clk 0:02:39.3]} 17. b4 {[%clk 0:01:36]} 17... h6 {[%clk 0:02:21.4]} 18. Nd3
{[%clk 0:01:27.7]} 18... Rc8 {[%clk 0:01:38.5]} 19. Rac1 {[%clk 0:01:20.5]}
19... axb4 {[%clk 0:01:32.9]} 20. axb4 {[%clk 0:01:20.2]} 20... Kh8 {[%clk
0:01:30.6]} 21. f4 {[%clk 0:00:59.4]} 21... e4 {[%clk 0:01:26.7]} 22. Ne1 {[%clk
0:00:59.5]} 22... Ra8 {[%clk 0:01:15.3]} 23. Nc2 {[%clk 0:00:56.4]} 23... Bf6
{[%clk 0:01:14.5]} 24. Nd4 {[%clk 0:00:44.7]} 24... Bxd4 {[%clk 0:01:14.1]} 25.
Bxd4 {[%clk 0:00:45.6]} 25... Qe7 {[%clk 0:01:11.1]} 26. Rc3 {[%clk 0:00:37.6]}
26... Nf6 {[%clk 0:01:01.5]} 27. Rg3 {[%clk 0:00:32.4]} 27... Qc7 {[%clk
0:00:27.6]} 28. Rc1 {[%clk 0:00:23.5]} 28... Rf7 {[%clk 0:00:25.9]} 29. Ra3
{[%clk 0:00:14.6]} 29... Rff8 {[%clk 0:00:24.3]} 30. Rca1 {[%clk 0:00:12.9]}
30... Qb7 {[%clk 0:00:23.7]} 31. Qa2 {[%clk 0:00:05.4]} 31... Nc7 {[%clk
0:00:21.3]} 32. Ra7 {[%clk 0:00:04.9]} 32... Qb8 {[%clk 0:00:13.9]} 33. Rxa8
{[%clk 0:00:04.9]} 33... Nxa8 {[%clk 0:00:13]} 34. Qa7 {[%clk 0:00:04.8]} 34...
Qd8 {[%clk 0:00:12.1]} 35. Qb7 {[%clk 0:00:03.5]} 35... Rg8 {[%clk 0:00:09]} 36.
Bxf6 {[%clk 0:00:02.3]} 36... Qxf6 {[%clk 0:00:08.5]} 37. Rxa8 {[%clk
0:00:02.7]} 37... Qd4+ {[%clk 0:00:08.7]} 38. Kf1 {[%clk 0:00:03.1]} 38... Rxa8
{[%clk 0:00:08.2]} 39. Qxa8+ {[%clk 0:00:03.9]} 39... Kh7 {[%clk 0:00:09.1]} 40.
Qa2 {[%clk 0:00:02.3]} 40... Qc3 {[%clk 0:00:08.9]} 41. Qb1 {[%clk 0:00:01.8]}
41... Qd2 {[%clk 0:00:08.2]} 42. Qd1 {[%clk 0:00:01.5]} 42... Qxf4+ {[%clk
0:00:08.2]} 43. Kg1 {[%clk 0:00:02.1]} 43... Qe3+ {[%clk 0:00:08.7]} 44. Kh1
{[%clk 0:00:02.6]} 44... f4 {[%clk 0:00:09.3]} 45. Qf1 {[%clk 0:00:03]} 45... g5
{[%clk 0:00:08.4]} 46. h3 {[%clk 0:00:03.2]} 46... Kg6 {[%clk 0:00:07.9]} 47.
Bg4 {[%clk 0:00:03.5]} 47... h5 {[%clk 0:00:07.8]} 48. Be2 {[%clk 0:00:04.1]}
48... Kf6 {[%clk 0:00:07.2]} 49. Bxh5 {[%clk 0:00:03.1]} 49... Ke5 {[%clk
0:00:06.4]} 50. Qa1+ {[%clk 0:00:03]} 50... Kf5 {[%clk 0:00:05.9]} 51. Bg4+
{[%clk 0:00:02.7]} 51... Kg6 {[%clk 0:00:06.4]} 52. Qd1 {[%clk 0:00:02.8]} 52...
Qc3 {[%clk 0:00:05.7]} 53. Be2 {[%clk 0:00:03.1]} 53... Qxb4 {[%clk 0:00:05.1]}
54. Bf1 {[%clk 0:00:01.6]} 54... Qc3 {[%clk 0:00:04.7]} 55. Qg4 {[%clk
0:00:01.9]} 55... Qe5 {[%clk 0:00:04.3]} 56. Qe6+ {[%clk 0:00:01.8]} 56... Qxe6
{[%clk 0:00:04.7]} 57. dxe6 {[%clk 0:00:02.7]} 57... Kf6 {[%clk 0:00:05.4]} 58.
g3 {[%clk 0:00:03.1]} 58... Kxe6 {[%clk 0:00:05.4]} 59. gxf4 {[%clk 0:00:03.6]}
59... gxf4 {[%clk 0:00:05.8]} 60. Kg2 {[%clk 0:00:04.3]} 60... Kf5 {[%clk
0:00:03.9]} 61. Kf2 {[%clk 0:00:04.5]} 61... Kg5 {[%clk 0:00:03]} 62. Be2 {[%clk
0:00:04.5]} 62... f3 {[%clk 0:00:03.2]} 63. Bxf3 {[%clk 0:00:02.3]} 63... exf3
{[%clk 0:00:03.5]} 64. Kxf3 {[%clk 0:00:03.2]} 64... Kh4 {[%clk 0:00:03.9]} 65.
Ke4 {[%clk 0:00:03.7]} 65... Kxh3 {[%clk 0:00:04.3]} 66. Kd5 {[%clk 0:00:04.2]}
66... Kg4 {[%clk 0:00:04.3]} 67. Kxd6 {[%clk 0:00:04.7]} 67... Kf5 {[%clk
0:00:05.2]} 68. Kc6 {[%clk 0:00:05.1]} 68... Ke6 {[%clk 0:00:05.2]} 69. Kxb6
{[%clk 0:00:05.5]} 69... Kd7 {[%clk 0:00:05.9]} 70. c5 {[%clk 0:00:05.8]} 70...
Kd8 {[%clk 0:00:05.8]} 71. Kb7 {[%clk 0:00:05.7]} 71... Kd7 {[%clk 0:00:06.1]}
72. c6+ {[%clk 0:00:06.3]} 1-0

[Event "*** Titled Tuesday Blitz"]
[Site "Chess.com"]
[Date "2020.05.05"]
[Round "10"]
[White "mrkvoz"]
[Black "vpsetter"]
[Result "0-1"]
[WhiteElo "2822"]
[BlackElo "2664"]
[TimeControl "180+1"]
[EndTime "12:01:19 PDT"]
[Termination "vpsetter won on time"]

1. e4 {[%clk 0:01:57.5]} 1... e5 {[%clk 0:02:58.9]} 2. Nf3 {[%clk 0:01:56.6]}
2... Nc6 {[%clk 0:02:59.2]} 3. d4 {[%clk 0:01:55.8]} 3... exd4 {[%clk
0:02:59.4]} 4. Nxd4 {[%clk 0:01:56.7]} 4... Nf6 {[%clk 0:02:59.8]} 5. Nxc6
{[%clk 0:01:56.7]} 5... bxc6 {[%clk 0:02:59.4]} 6. Bd3 {[%clk 0:01:57.1]} 6...
d5 {[%clk 0:02:59.2]} 7. exd5 {[%clk 0:01:58]} 7... cxd5 {[%clk 0:02:58.6]} 8.
O-O {[%clk 0:01:58]} 8... Be7 {[%clk 0:02:54.4]} 9. c4 {[%clk 0:01:56.5]} 9...
O-O {[%clk 0:02:50.1]} 10. cxd5 {[%clk 0:01:56.3]} 10... Qxd5 {[%clk 0:02:49.1]}
11. Nc3 {[%clk 0:01:55.6]} 11... Qd7 {[%clk 0:02:39.8]} 12. Bg5 {[%clk
0:01:47.9]} 12... Rd8 {[%clk 0:02:36.6]} 13. Qf3 {[%clk 0:01:34.4]} 13... Rb8
{[%clk 0:02:20.6]} 14. Rad1 {[%clk 0:01:29.2]} 14... Qg4 {[%clk 0:02:17.5]} 15.
Qxg4 {[%clk 0:01:25.8]} 15... Bxg4 {[%clk 0:02:16.8]} 16. f3 {[%clk 0:01:25.8]}
16... Be6 {[%clk 0:02:13.4]} 17. b3 {[%clk 0:01:20.4]} 17... h6 {[%clk
0:01:24.8]} 18. Be3 {[%clk 0:01:19.3]} 18... a5 {[%clk 0:01:24.5]} 19. Be2
{[%clk 0:01:07.8]} 19... Bb4 {[%clk 0:01:19.2]} 20. Na4 {[%clk 0:01:02]} 20...
Nd5 {[%clk 0:01:16.2]} 21. Ba7 {[%clk 0:00:55.6]} 21... Ra8 {[%clk 0:01:13.3]}
22. Bf2 {[%clk 0:00:55.5]} 22... Nf4 {[%clk 0:01:04.1]} 23. Bb5 {[%clk
0:00:53.3]} 23... Rd6 {[%clk 0:00:46.9]} 24. Rxd6 {[%clk 0:00:52.2]} 24... cxd6
{[%clk 0:00:42.5]} 25. Rc1 {[%clk 0:00:49.9]} 25... Rb8 {[%clk 0:00:39.4]} 26.
Bf1 {[%clk 0:00:48.7]} 26... Nd5 {[%clk 0:00:25.2]} 27. Bd3 {[%clk 0:00:33.2]}
27... Bd7 {[%clk 0:00:21.3]} 28. Bc4 {[%clk 0:00:27]} 28... Nf4 {[%clk
0:00:14.7]} 29. Nb6 {[%clk 0:00:25.6]} 29... Be6 {[%clk 0:00:14.8]} 30. Bxe6
{[%clk 0:00:20.4]} 30... Ne2+ {[%clk 0:00:15]} 31. Kf1 {[%clk 0:00:20.2]} 31...
Nxc1 {[%clk 0:00:15.2]} 32. Bc4 {[%clk 0:00:19.5]} 32... Nxa2 {[%clk 0:00:12.9]}
33. Nd5 {[%clk 0:00:16]} 33... Rb7 {[%clk 0:00:12.4]} 34. Ba6 {[%clk 0:00:15.2]}
34... Rb8 {[%clk 0:00:11]} 35. Ne7+ {[%clk 0:00:13.3]} 35... Kf8 {[%clk
0:00:10.6]} 36. Nc6 {[%clk 0:00:14.2]} 36... Re8 {[%clk 0:00:10.4]} 37. Bb5
{[%clk 0:00:14.3]} 37... Nc3 {[%clk 0:00:09.2]} 38. Bd3 {[%clk 0:00:12.3]} 38...
Nd1 {[%clk 0:00:07.4]} 39. Bb6 {[%clk 0:00:09.5]} 39... Ne3+ {[%clk 0:00:07.1]}
40. Kf2 {[%clk 0:00:08.4]} 40... Bc5 {[%clk 0:00:06.5]} 41. Bxc5 {[%clk
0:00:07.5]} 41... dxc5 {[%clk 0:00:06.9]} 42. Nxa5 {[%clk 0:00:08.4]} 42... Nd5
{[%clk 0:00:07.2]} 43. Bc4 {[%clk 0:00:08.2]} 43... Nb6 {[%clk 0:00:05]} 44. Nb7
{[%clk 0:00:07.6]} 44... Nxc4 {[%clk 0:00:04.8]} 45. bxc4 {[%clk 0:00:08.5]}
45... Re5 {[%clk 0:00:05.2]} 46. f4 {[%clk 0:00:07.5]} 46... Re4 {[%clk
0:00:04.9]} 47. Nxc5 {[%clk 0:00:06.6]} 47... Rxf4+ {[%clk 0:00:05.3]} 48. Ke3
{[%clk 0:00:06.7]} 48... Rxc4 {[%clk 0:00:06.1]} 49. Nd7+ {[%clk 0:00:07.2]}
49... Ke7 {[%clk 0:00:06.1]} 50. Ne5 {[%clk 0:00:08.1]} 50... Ra4 {[%clk
0:00:06.3]} 51. Nf3 {[%clk 0:00:07.9]} 51... g5 {[%clk 0:00:05.8]} 52. h3 {[%clk
0:00:08]} 52... Kf6 {[%clk 0:00:06.4]} 53. Nh2 {[%clk 0:00:07.3]} 53... Ra3+
{[%clk 0:00:06.5]} 54. Kf2 {[%clk 0:00:07.1]} 54... Kg6 {[%clk 0:00:07.1]} 55.
Ng4 {[%clk 0:00:07.2]} 55... Ra5 {[%clk 0:00:06.9]} 56. Ne3 {[%clk 0:00:06.6]}
56... f5 {[%clk 0:00:07.3]} 57. g4 {[%clk 0:00:06.7]} 57... f4 {[%clk
0:00:06.7]} 58. Nc4 {[%clk 0:00:05.7]} 58... Rc5 {[%clk 0:00:06.6]} 59. Nd6
{[%clk 0:00:05.3]} 59... Rc3 {[%clk 0:00:06.2]} 60. Kg2 {[%clk 0:00:05.5]} 60...
Rg3+ {[%clk 0:00:06.2]} 61. Kh2 {[%clk 0:00:06]} 61... Re3 {[%clk 0:00:06.5]}
62. Nf5 {[%clk 0:00:06.5]} 62... Re5 {[%clk 0:00:06.6]} 63. Nd4 {[%clk
0:00:06.8]} 63... h5 {[%clk 0:00:06.5]} 64. Kg2 {[%clk 0:00:05.8]} 64... hxg4
{[%clk 0:00:06.3]} 65. hxg4 {[%clk 0:00:06.7]} 65... Re3 {[%clk 0:00:06.7]} 66.
Nf3 {[%clk 0:00:07.1]} 66... Kf6 {[%clk 0:00:06]} 67. Kf2 {[%clk 0:00:07.2]}
67... Rc3 {[%clk 0:00:05.1]} 68. Ke2 {[%clk 0:00:06.9]} 68... Re3+ {[%clk
0:00:05.2]} 69. Kf2 {[%clk 0:00:07.3]} 69... Rxf3+ {[%clk 0:00:05.5]} 70. Kxf3
{[%clk 0:00:07.6]} 70... Ke5 {[%clk 0:00:06.3]} 71. Ke2 {[%clk 0:00:07.6]} 71...
Ke4 {[%clk 0:00:06.8]} 72. Kf2 {[%clk 0:00:07.8]} 72... f3 {[%clk 0:00:06.6]}
73. Kg3 {[%clk 0:00:08]} 73... Ke3 {[%clk 0:00:07.1]} 0-1